Cogmind - Beta 10.2 @@@ ROGUE MODE // 2021.07.29 @ 07:15:56 Player: blug Result: Self-destructed Performance ------------- Evolutions (1) 500 Regions Visited (2) 400 Robots Destroyed (26) 130 Value Destroyed (588) 588 Prototype IDs (5) 100 Alien Tech Used (0) 0 Bonus (0) 0 TOTAL SCORE: 1718 Bonus ------- None Cogmind --------- Core Integrity 83/400 Matter 300/300 Energy 100/100 System Corruption 0% Temperature Cool (6) Movement Walking (150) Ox1 Location -9/Materials Parts ------- > --- POWER (1) -------- (None) > --- PROPULSION (3) --- Aluminum Leg > --- UTILITY (3) ------ Medium Storage Unit > --- WEAPON (2) ------- Maul Maul > --- INVENTORY (8) ---- Light Ion Engine Aluminum Leg Aluminum Leg Aluminum Leg Small Storage Unit Particle Gun Particle Gun Peak State ------------ > --- POWER ------------ Ion Engine > --- PROPULSION ------- Aluminum Leg Aluminum Leg > --- UTILITY ---------- Small Storage Unit Medium Storage Unit Light Armor Plating > --- WEAPON ----------- Maul Maul > --- INVENTORY -------- Ion Engine Light Ion Engine Aluminum Leg Aluminum Leg Particle Gun Particle Gun [Rating: 10] Favorites ----------- Power Ion Engine Engine Ion Engine Propulsion Aluminum Leg Leg Aluminum Leg Utility Small Storage Unit Storage Small Storage Unit Processor Targeting Computer Protection Light Armor Plating Weapon Maul Energy Gun Small Laser Impact Weapon Maul Build | -11 -10 -9 ------- Run | Scr Mat Mat Slots Evolved 2 | . . 2 Power . | . . . Propulsion 1 | . . 1 Utility 1 | . . 1 Weapon . | . . . Parts Attached 28 | 6 14 8 Power 6 | 1 4 1 Engine 6 | 1 4 1 Core . | . . . Reactor . | . . . Propulsion 11 | 2 3 6 Treads . | . . . Leg 11 | 2 3 6 Wheel . | . . . Hover . | . . . Flight . | . . . Utility 5 | 1 3 1 Device . | . . . Storage 2 | 1 . 1 Processor 1 | . 1 . Hackware . | . . . Protection 2 | . 2 . Artifact . | . . . Weapon 6 | 2 4 . Energy Gun 4 | 2 2 . Energy Cannon . | . . . Ballistic Gun . | . . . Ballistic Cannon . | . . . Launcher . | . . . Special Weapon . | . . . Impact Weapon 2 | . 2 . Slashing Weapon . | . . . Piercing Weapon . | . . . Special Melee Weapon . | . . . Unidentified Prototypes . | . . . Parts Lost 5 | . . 5 Power 2 | . . 2 Propulsion 2 | . . 2 Utility 1 | . . 1 Weapon . | . . . Highest Loss Streak 3 | . . 3 Average Slot Usage (%) 88 | . 96 75 Engine 12 | . 14 10 Leg 28 | . 28 28 Storage 12 | . 14 11 Processor 3 | . 5 . Protection 5 | . 5 4 Energy Gun 13 | . 23 . Impact Weapon 11 | . 4 22 Naked Turns . | . . . Heaviest Build 22 | 12 18 22 Greatest Support 30 | 20 20 30 Greatest Overweight (x) 1 | . . 1 Average Overweight (x) . | . . . Largest Inventory Capacity 10 | 6 6 10 Average Capacity 6 | 4 6 7 Most Carried 8 | 3 6 8 Average Carried 5 | 1 4 6 Final Capacity 8 | 6 6 8 Final Carried 7 | 2 6 7 Class Distribution -------------------- 100% | Mutant Dominant Class ---------------- Mutant | -10/Materials Mutant | -9/Materials Resources | -11 -10 -9 ----------- Run | Scr Mat Mat Matter Collected 480 | 254 136 90 Remotely . | . . . Salvage Created 814 | . 426 388 Parts 38 | . 25 13 Haulers Intercepted 2 | . 1 1 Recyclers Shooed 1 | . 1 . Parts Field Recycled . | . . . Retrieved Matter . | . . . Parts Self-Destructed . | . . . Prevented . | . . . Kills | -11 -10 -9 ------- Run | Scr Mat Mat Combat Hostiles Destroyed 22 | . 12 10 Melee 11 | . 3 8 Guns 9 | . 9 . Classes Destroyed 6 | . 5 1 Worker 1 | . 1 . Hauler 2 | . 1 1 Watcher 1 | . 1 . Swarmer 8 | . 6 2 Grunt 13 | . 6 7 Sentry 1 | . . 1 Best Kill Streak 4 | . 4 3 Combat Bots Only 3 | . 3 3 Max Kills in Single Turn 1 | . 1 1 Gunslinging . | . . . Exploded . | . . . Melee 1 | . 1 1 Uniques/NPCs Destroyed . | . . . Combat | -11 -10 -9 -------- Run | Scr Mat Mat Damage Taken 1309 | . 197 1112 Core 364 | . 47 317 Absorbed by Shields . | . . . Core Remaining (%) 90 | 100 81 . Volleys Fired 23 | . 23 . Largest 2 | . 2 . Hottest 80 | . 80 . Shots Fired 46 | . 46 . Gun 46 | . 46 . Cannon . | . . . Launcher . | . . . Special . | . . . Kinetic . | . . . Thermal 40 | . 40 . Explosive . | . . . Electromagnetic 6 | . 6 . Robot Hit Streak 14 | . 14 . Robot Miss Streak 3 | . 3 . Penetration Max . | . . . Secondary Targets . | . . . Shots Hit Robots 77 | . 34 43 Core Hits 30 | . 19 11 Critical Hits . | . . . Critical Kills . | . . . Critical Parts Destroyed . | . . . Melee Attacks 68 | . 6 62 Impact 68 | . 6 62 Slashing . | . . . Piercing . | . . . Sneak Attacks 2 | . 1 1 Combat Hostiles 1 | . 1 . Follow-up Attacks 8 | . 1 7 Damage Inflicted 1716 | . 602 1114 Guns 368 | . 368 . Cannons . | . . . Explosions . | . . . Melee 1348 | . 234 1114 Ramming . | . . . Kinetic . | . . . Thermal 292 | . 292 . Explosive . | . . . Electromagnetic 76 | . 76 . Impact 1348 | . 234 1114 Slashing . | . . . Piercing . | . . . Highest Corruption 3 | . 3 . Average Corruption 2 | . 2 . Corruption Purged . | . . . Effects 2 | . 2 . Message Errors 1 | . 1 . Data Loss (minor) 1 | . 1 . Overload Shots . | . . . Overflow Damage 79 | . . 79 Projectiles . | . . . Explosions . | . . . Melee 79 | . . 79 Knockbacks 4 | . . 4 Impact 4 | . . 4 Kinetic . | . . . Secondary . | . . . Self-Inflicted Damage . | . . . Shots . | . . . Rammed . | . . . Targets Rammed . | . . . Kicked . | . . . Crushed . | . . . Highest Temperature 132 | . 132 . Average Temperature 40 | . 40 . Received Heat Transfer 489 | . 72 417 Siege Activations . | . . . Robots Corrupted . | . . . Combat Hostiles . | . . . Parts Fried 4 | . 1 3 Impact Corruptions 7 | . . 7 Robots Melted . | . . . Combat Hostiles . | . . . Parts Melted 1 | . 1 . Heat Transferred 650 | . 650 . Parts Sabotaged . | . . . Parts Stolen . | . . . Parts Stripped . | . . . Power Chain Reactions . | . . . Missiles Intercepted . | . . . Alert | -11 -10 -9 ------- Run | Scr Mat Mat Peak Influence 284 | . 275 284 Initial 101 | . . 101 Average 104 | . 107 111 Maximum Alert Level 1 | . 1 1 Low Security (%) 87 | 100 85 87 Level 1 12 | . 14 12 Level 2 . | . . . Level 3 . | . . . Level 4 . | . . . Level 5 . | . . . High Security . | . . . Max Security . | . . . Squads Dispatched 5 | . 2 3 Investigation 3 | . 2 1 Extermination . | . . . Reinforcement 2 | . . 2 Assault . | . . . Garrison . | . . . Intercept . | . . . Construction Impeded . | . . . Haulers Reinforced . | . . . Stealth | -11 -10 -9 --------- Run | Scr Mat Mat Distress Signals 1 | . . 1 Communications Jammed . | . . . Distress Signals . | . . . Times Spotted 39 | . 17 22 Peak Tracking Total 4 | . 3 4 Tactical Retreats 6 | . 2 4 Traps | -11 -10 -9 ------- Run | Scr Mat Mat Traps Triggered 6 | . 5 1 Indirectly . | . . . Trap Hack Attempts . | . . . Triggered . | . . . Disarmed . | . . . Reprogrammed . | . . . Reused . | . . . Traps Extracted . | . . . Installed . | . . . Triggered 1 | . 1 . Machines | -11 -10 -9 ---------- Run | Scr Mat Mat Machines Disabled . | . . . Max in Single Turn . | . . . Machines Sabotaged . | . . . Garrisons Compromised . | . . . Overloaded Fab Kills . | . . . Fab Network Shutdowns . | . . . Hacking | -11 -10 -9 --------- Run | Scr Mat Mat Machines Accessed 7 | . 5 2 Terminals 7 | . 5 2 Fabricators . | . . . Repair Stations . | . . . Recycling Units . | . . . Scanalyzers . | . . . Garrison Access . | . . . Total Hacks 21 | . 15 6 Successful 14 | . 10 4 Failed 7 | . 5 2 Catastrophic . | . . . Database Lockouts . | . . . Manual 7 | . 5 2 Terminals 21 | . 15 6 Fabricators . | . . . Repair Stations . | . . . Recycling Units . | . . . Scanalyzers . | . . . Garrison Access . | . . . Terminal Hacks 12 | . 8 4 Record 8 | . 5 3 Prototype ID Bank 2 | . 2 . Unreport Threat 1 | . . 1 Registered Components 1 | . 1 . Fabricator Hacks . | . . . Repair Station Hacks . | . . . Recycling Unit Hacks . | . . . Scanalyzer . | . . . Garrison Access Hacks . | . . . Unauthorized Hacks 2 | . 2 . Terminals 2 | . 2 . Track 2 | . 2 . Fabricators . | . . . Repair Stations . | . . . Recycling Units . | . . . Scanalyzers . | . . . Garrison Access . | . . . Data Cores Recovered . | . . . Used . | . . . Hacking Detections 7 | . 5 2 Full Trace Events 2 | . 2 . Feedback Events . | . . . Feedback Blocked . | . . . Robot Schematics Acquired . | . . . Robots Built . | . . . Matter . | . . . Time . | . . . Total Robot Build Rating . | . . . Part Schematics Acquired . | . . . Parts Built . | . . . Matter . | . . . Time . | . . . Total Part Build Rating . | . . . Parts Repaired . | . . . Time . | . . . Parts Recycled . | . . . Recycled Matter . | . . . Retrieved Matter . | . . . Retrieved Components . | . . . Parts Scanalyzed . | . . . Part Schematics Acquired . | . . . Parts Damaged . | . . . Bothacking | -11 -10 -9 ------------ Run | Scr Mat Mat Used RIF Installer . | . . . Robots Hacked . | . . . Non-combat . | . . . Combat . | . . . Robot Hacks Applied . | . . . Relay Couplers Released . | . . . Robots Rewired . | . . . Allies Hacked . | . . . Hacks Repelled . | . . . Allies | -11 -10 -9 -------- Run | Scr Mat Mat Total Allies . | . . . Largest Group . | . . . Highest-Rated Group . | . . . Highest-Rated Ally . | . . . Total Orders . | . . . Ally Attacks . | . . . Total Damage . | . . . Kills . | . . . Allies Corrupted . | . . . Allies Melted . | . . . Intel | -11 -10 -9 ------- Run | Scr Mat Mat Robot Analysis Total . | . . . Derelict Logs Recovered . | . . . Drone Launches . | . . . Drone Recoveries . | . . . Exploration | -11 -10 -9 ------------- Run | Scr Mat Mat Turns Passed 1365 | 66 759 540 Spaces Moved 789 | 47 494 248 Core 2 | 2 . . Treads . | . . . Legs 787 | 45 494 248 Wheels . | . . . Hover . | . . . Flight . | . . . Fastest Speed 50 | 50 120 120 Average Speed 122 | 117 120 127 Slowest Speed 150 | 120 120 150 Overloaded Moves . | . . . Propulsion Burnouts . | . . . Robots Hopped . | . . . Cave-ins Triggered . | . . . Exploration Rate (%) 30 | 4 67 19 Regions Visited 2 Branch Regions . Pre-discovered Areas . | . . . Known Exits Taken . | . . . Unknown Exits Taken 2 | 1 1 . Scrap Searched . | . . . Spaces Dug . | . . . Terrain Destroyed . | . . . Melee . | . . . Projectile . | . . . AOE . | . . . Terrain Rammed . | . . . Walls Destroyed . | . . . Machines Disabled . | . . . Actions | -11 -10 -9 --------- Run | Scr Mat Mat Total 1020 | 55 604 361 Wait 102 | . 54 48 Move 787 | 46 493 248 Hop . | . . . Pick Up 8 | 3 5 . Fast Attach 18 | 5 12 1 Attach 3 | 1 . 2 Detach 4 | . 3 1 Swap 7 | . 2 5 Drop 11 | . 8 3 Fire 23 | . 23 . Melee 57 | . 4 53 Ram . | . . . Kick . | . . . Crush . | . . . Escape Stasis . | . . . Rewire . | . . . Trap . | . . . Miscellaneous . | . . . Route ------- -11/Scrapyard -10/Materials (discovered 2 exits: *Mat x2) -9/Materials (discovered 1 exit: [*Min]) History --------- Turn | Location | Event 13 | -11/Scrapyard | Discovered new exit (range 14) 67 | -11/Scrapyard | Entered Materials 306 | -10/Materials | Build established: Mutant 376 | -10/Materials | Discovered new exit (range 8) 808 | -10/Materials | Discovered new exit (range 13) 826 | -10/Materials | Entered another Materials area 826 | -9/Materials | Evolved 2 slots: Propulsion x1, Utility x1 940 | -9/Materials | Discovered new exit (range 6) 1337 | -9/Materials | Core integrity fell below 50% 1366 | -9/Materials | Self-destructed Last Messages --------------- 01216_ R-06 Scavenger collects Aluminum Leg. 01216_ Acquired 20 matter. 01233_ K-01 Serf cleans the Processing Tank. 01254_ Maul follow-up attack on G-34 Mercenary. 01265_ G-34 Mercenary destroyed. 01273_ Dropped Aluminum Leg. 01298_ Sneak attack on A-02 Transporter. 01298_ A-02 Transporter destroyed. 01301_ Acquired 10 matter. 01304_ R-06 Scavenger collects Aluminum Leg. 01349_ Maul follow-up attack on G-34 Mercenary. 01349_ G-34 Mercenary knocked back. 01349_ Ion Engine destroyed. 01353_ K-01 Serf collects debris. 01357_ Aluminum Leg destroyed. 01358_ K-01 Serf collects debris. 01362_ Aluminum Leg destroyed. 01363_ Destroyed Heat Sink. 01363_ G-34 Mercenary system corrupted by crushing effect. 01365_ K-01 Serf collects debris. Map ----- +----------------------------------------------------+ | ?????????????????????????????????????????????????? | | ????????????????############?????????????????????? | | ????????????????# # #?????????????????????? | | ????????????????# """ # #?????????????????????? | | ????????????????#! """ # #?????????????????????? | | ????????????????# """ + #???#+######??????????? | | ????????????????# # #??? ???????????? | | ????????????????# # #### #??????????????? | | ?????????????########### #??????????????? | | ?????????????# # #??????????????? | | ?????????????# # #??????????????? | | ?????????????# # !!! ! #??????????????? | | ?????????????# """ + !![ #??????????????? | | ?????????????# """ # !! #??????????????? | | ?????????????# """ # +??????????????? | | ?????????????# "T" # r #??????????????? | | ?????????????# """ # !*#### #??????????????? | | ?????????????#+######### *%#??? #??????????????? | | ?????????????# #???????# k #??? #??????????????? | | ?????????????# #???????# #??? #??????????????? | | ?????????????# #???????# #??? ??????????????? | | ?????????????# #???????# #??? ?????????????? | | ?????????????# #???????# #??? ????????????? | | #########????# #######?# o#????######???????????? | | # #????# ##!!! ###g #?????????????????????? | | / """"" #????# #! !## @ #?????????????????????? | | # """"" #????# #! !## ########??????????????? | | # """"" ###### # ## s #??????????????? | | # + [% g #??????????????? | | ######+################# #??????????????? | | ?????# #???????#######?######## #??????????????? | | ?????# ######### #????????# #??????????????? | | ?????# #????????# #??????????????? | | ?????# T #????????# #??????????????? | | ?????# % #????????# #??????????????? | | ?????# ### ### #???????## #??????????????? | | ?????# #?#%#??# ######### # #??????????????? | | ?????# #?# #??# %# ]]]# #??????????????? | | ?????# ###+#### %+%% ]] # #??????????????? | | ????? # # # "T" ]] # #??????????????? | | ???? ## # # """ # #??????????????? | | ??? ## # ########### #??????????????? | | ?? ## # ########### #??????????????? | | ? ## +% ##""!"|""## #??????????????? | | ? ?# # ## "!"|" ## #??????????????? | | ?? ##+?######## ## ## ############???? | | ???? ???????????# % ??? | | ??????????????+ < ??? | | ??????????????### % ??? | | ????????????????###+## ##+##### ##???? | +----------------------------------------------------+ Best States ------------- Heat Dissipation 28 Energy Generation 10 Energy Capacity 250 Matter Stores 300 Matter Capacity 300 Sight Range 16 Terrain Scan Density 10 Armor Coverage 150 Evasion (%) 40 Targeting Accuracy 5 Item Schematics ----------------- None Robot Schematics ------------------ None Fabricated ------------ Nothing Alien Tech Used ----------------- None Achievements -------------- True Hacker Challenges ------------ None Game ------ Seed ComponentSpreadExpander Manual? 0 Play Time 00:22:29 Cumulative 1.4 hours Start 2021.07.28 @ 22:19:44 End 2021.07.29 @ 07:15:56 Sessions 3 Manual Loads 0 Difficulty Rogue Special Mode None Game No. 2 Rogue 2 Adventurer 0 Explorer 0 Win Type - Total 0 Types 0/0/0/0/0/0/0/0/0 Lore% 5 Gallery% 2 Achievement% 15 Wizard Run 0 Options --------- ASCII 0 Keyboard 1 Movement Numpad Keybinds 0 Fullscreen 1 Font 18/SmallcapsGlow Map View 76x50 Tactical HUD 1 Map Filters NONE Filters NONE Steam 1 RUN: 9b819859-5c3f-4e19-beaf-76ca599efd87